bitfinex/quotes_BTCUSD_20250219
["timestamp","ask_amount","ask_price","bid_price","bid_amount"]
[1739992274761,0.43898313,95700.0,95699.0,0.00053053]
[1739992274915,0.44098313,95700.0,95699.0,0.00053053]
[1739992275273,0.43398313,95700.0,95699.0,0.00053053]
[1739992275505,0.43898313,95700.0,95699.0,0.00053053]
[1739992275709,0.44598313,95700.0,95699.0,0.00053053]
[1739992276064,0.43398313,95700.0,95699.0,0.00053053]
[1739992276268,0.44098313,95700.0,95699.0,0.00053053]
[1739992276466,0.44598313,95700.0,95699.0,0.00053053]
[1739992277466,0.53237754,95700.0,95699.0,0.00053053]
[1739992277714,0.52737754,95700.0,95699.0,0.00053053]
[1739992277889,0.52537754,95700.0,95699.0,0.00053053]
[1739992278090,0.54875462,95700.0,95699.0,0.00053053]
[1739992278271,0.54375462,95700.0,95699.0,0.00053053]
[1739992278489,0.54175462,95700.0,95699.0,0.00053053]
[1739992278910,0.54875462,95700.0,95699.0,0.00053053]
[1739992281428,1.75605221,95700.0,95699.0,0.00053053]
[1739992281631,4.71469221,95700.0,95699.0,5.3e-07]
[1739992281805,0.48236021,95700.0,95699.0,5.3e-07]
[1739992282316,0.47736021,95700.0,95699.0,5.3e-07]
[1739992282506,0.60528691,95700.0,95699.0,5.3e-07]
[1739992282702,0.62682776,95700.0,95699.0,5.3e-07]
[1739992282954,0.55565856,95700.0,95699.0,5.3e-07]
[1739992283544,0.55542959,95700.0,95699.0,5.3e-07]
[1739992284167,0.02,95691.0,95674.0,0.0004257]
[1739992284418,0.30678,95675.0,95674.0,0.0004257]
[1739992284621,0.156808,95658.0,95657.0,0.0783]
[1739992284836,0.209071,95661.0,95649.0,0.0758]
[1739992284837,0.306813,95655.0,95649.0,0.0758]
[1739992285038,0.306813,95655.0,95630.0,0.0758]
[1739992285039,0.492358,95655.0,95630.0,0.0758]
[1739992285185,0.306813,95655.0,95631.0,0.08356357]
[1739992285393,0.31098282,95655.0,95631.0,0.08356357]
[1739992285558,0.31098282,95655.0,95654.0,0.090054]
[1739992285559,0.15416982,95655.0,95654.0,0.090054]
[1739992285770,0.15430046,95655.0,95654.0,0.090054]
[1739992286022,0.17307497,95655.0,95654.0,0.090054]
[1739992286191,0.00430046,95655.0,95654.0,0.090054]
[1739992286490,0.16111346,95655.0,95654.0,0.090054]
[1739992287000,0.02354924,95655.0,95654.0,0.090054]
[1739992287211,0.01937942,95655.0,95654.0,0.090054]
[1739992287423,0.02390405,95655.0,95654.0,0.090054]
[1739992287873,0.02290405,95655.0,95654.0,0.090054]
[1739992288045,0.02490405,95655.0,95654.0,0.090054]
[1739992288456,0.02290405,95655.0,95654.0,0.090054]
[1739992288863,0.02490405,95655.0,95654.0,0.090054]
[1739992289796,0.02137942,95655.0,95654.0,0.090054]
[1739992290157,0.02488839,95655.0,95654.0,0.090054]
[1739992290588,0.02137942,95655.0,95654.0,0.090054]
[1739992290931,0.00563961,95655.0,95654.0,0.090054]
[1739992291262,0.00213064,95655.0,95654.0,0.090054]
[1739992291467,0.00563961,95655.0,95654.0,0.090054]
[1739992291691,0.00213064,95655.0,95654.0,0.090054]
[1739992291900,0.00213064,95655.0,95654.0,0.014254]
[1739992291901,0.16245261,95655.0,95654.0,0.014254]
[1739992293781,0.33171361,95655.0,95654.0,0.014254]
[1739992293896,0.33371361,95655.0,95654.0,0.014254]
[1739992294105,0.32971361,95655.0,95654.0,0.014254]
[1739992294521,0.33471361,95655.0,95654.0,0.014254]
[1739992294757,0.33371361,95655.0,95654.0,0.014254]
[1739992294954,0.32971361,95655.0,95654.0,0.014254]
[1739992295114,0.33571361,95655.0,95654.0,0.014254]
[1739992295314,0.33171361,95655.0,95654.0,0.014254]
[1739992295683,0.40770117,95655.0,95654.0,0.014254]
[1739992295829,0.40570117,95655.0,95654.0,0.014254]
[1739992296028,1.60333282,95655.0,95654.0,0.014254]
[1739992296234,3.05654526,95655.0,95654.0,0.014254]
[1739992296457,3.10028844,95655.0,95654.0,0.014254]
[1739992296989,3.09928844,95655.0,95654.0,0.0146803]
[1739992297137,3.12167228,95655.0,95654.0,0.0146803]
[1739992297346,3.10867228,95655.0,95654.0,0.0146803]
[1739992297745,3.10867228,95655.0,95633.0,0.0004259]
[1739992297746,0.02,95634.0,95633.0,0.0004259]
[1739992297949,0.156887,95610.0,95603.0,0.0004259]
[1739992298177,0.306887,95610.0,95603.0,0.0004259]
[1739992298349,0.15,95610.0,95603.0,0.0004259]
[1739992298578,0.15316966,95610.0,95603.0,0.0004259]
[1739992298749,0.00316966,95610.0,95609.0,0.24092037]
[1739992298953,0.00316966,95610.0,95609.0,0.46822402]
[1739992299176,0.007,95634.0,95609.0,0.31133602]
[1739992299375,0.01638802,95629.0,95610.0,0.10250365]
[1739992299606,0.02940161,95629.0,95610.0,0.10250365]
[1739992299812,0.0032022,95628.0,95610.0,0.10250365]
[1739992300107,0.156862,95625.0,95610.0,0.10250365]
[1739992300417,0.00320037,95627.0,95610.0,0.10250365]
[1739992300618,0.156866,95623.0,95610.0,0.10250365]
[1739992300745,0.156863,95625.0,95610.0,0.10250365]
[1739992301159,0.00318964,95624.0,95610.0,0.10250365]
[1739992301689,0.17609029,95626.0,95615.0,0.156877]
[1739992301903,0.00318956,95623.0,95610.0,0.10250365]
[1739992302114,0.156866,95623.0,95610.0,0.10250365]
[1739992302486,0.16005573,95622.0,95610.0,0.10250365]
[1739992302634,0.00318773,95622.0,95610.0,0.10250365]
[1739992302835,0.00318773,95622.0,95609.0,0.20883237]
[1739992303199,0.02940161,95629.0,95609.0,0.20883237]
[1739992303373,0.156886,95611.0,95609.0,0.20883237]
[1739992303575,0.209166,95618.0,95609.0,0.20883237]
[1739992303779,0.00316585,95610.0,95609.0,0.20883237]
[1739992303981,0.156878,95616.0,95609.0,0.20883237]
[1739992304141,0.209168,95617.0,95609.0,0.20883237]
[1739992304142,0.00317401,95610.0,95609.0,0.20883237]
[1739992304341,0.1761014,95617.0,95609.0,0.20883237]
[1739992304572,0.00317401,95610.0,95609.0,0.20883237]
[1739992304789,0.0192254,95617.0,95610.0,0.156887]
[1739992304981,0.0192254,95617.0,95609.0,0.20883237]
[1739992305259,0.00317682,95616.0,95609.0,0.36572037]
[1739992305464,0.001,95610.0,95609.0,0.57490437]
[1739992307898,0.002,95610.0,95609.0,0.57490437]
[1739992308455,0.151,95610.0,95609.0,0.08403237]
[1739992308699,0.152,95610.0,95609.0,0.08445867]
[1739992308874,0.00531574,95610.0,95609.0,0.08445867]
[1739992309228,0.00431574,95610.0,95609.0,0.08445867]
[1739992309662,0.16120274,95610.0,95609.0,0.08445867]
[1739992310469,0.00431574,95610.0,95609.0,0.24134667]
[1739992310671,0.001,95610.0,95609.0,0.32154667]
[1739992310985,0.01639023,95613.0,95609.0,0.32154667]
[1739992311207,0.003,95610.0,95609.0,0.32154667]
[1739992311434,0.159887,95610.0,95609.0,0.08445867]
[1739992311634,0.156887,95610.0,95609.0,0.08445867]
[1739992311768,0.16019858,95610.0,95609.0,0.08445867]
[1739992312191,0.00331158,95610.0,95609.0,0.08445867]
[1739992312395,0.00531158,95610.0,95609.0,0.08445867]
[1739992312712,0.00331158,95610.0,95609.0,0.08445867]
[1739992312853,0.01639023,95613.0,95609.0,0.08445867]
[1739992313529,0.157887,95610.0,95609.0,0.08445867]
[1739992313974,0.16120063,95610.0,95609.0,0.08445867]
[1739992314544,0.00331363,95610.0,95609.0,0.08445867]
[1739992314660,0.15,95624.0,95609.0,0.08445867]
[1739992314875,0.00331567,95610.0,95609.0,0.08445867]
[1739992315072,0.001,95613.0,95609.0,0.08445867]
[1739992315481,0.156884,95612.0,95609.0,0.08445867]
[1739992315676,0.00331993,95612.0,95609.0,0.08445867]
[1739992315936,0.001,95613.0,95609.0,0.08445867]
[1739992316268,0.00331168,95611.0,95609.0,0.08445867]
[1739992316442,0.001,95610.0,95609.0,0.08445867]
[1739992316848,0.15,95619.0,95609.0,0.08445867]
[1739992317069,0.156883,95613.0,95609.0,0.08445867]
[1739992317283,0.001,95613.0,95609.0,0.08445867]
[1739992317620,0.15,95619.0,95609.0,0.08445867]
[1739992317621,0.00331585,95612.0,95609.0,0.08445867]
[1739992317843,0.15688,95615.0,95609.0,0.08445867]
[1739992318040,0.156885,95612.0,95609.0,0.08445867]
[1739992318444,0.00331372,95611.0,95609.0,0.08445867]
[1739992318866,0.00331158,95610.0,95609.0,0.08445867]
[1739992319272,0.01639012,95614.0,95609.0,0.08445867]
[1739992319696,0.001,95611.0,95609.0,0.08445867]
[1739992320096,0.209117,95640.0,95615.0,0.156877]
[1739992320321,0.15,95625.0,95614.0,0.15688]
[1739992320620,0.15,95625.0,95612.0,0.156883]
[1739992320794,0.00334112,95624.0,95611.0,0.0491]
[1739992321164,0.01639,95626.0,95612.0,0.10250365]
[1739992321572,0.01639,95626.0,95625.0,0.156862]
[1739992321792,0.01639,95626.0,95612.0,0.10250365]
[1739992322192,0.01639,95626.0,95625.0,0.156862]
[1739992322705,0.01281606,95631.0,95613.0,0.08356357]
[1739992322900,0.0008508,95633.0,95614.0,0.10250365]
[1739992323103,0.0008508,95633.0,95625.0,0.156862]
[1739992323330,0.00335391,95632.0,95625.0,0.003]
[1739992323739,0.00335391,95632.0,95631.0,0.235852]
[1739992323995,0.0008508,95633.0,95632.0,0.156851]
[1739992324383,0.0008508,95633.0,95631.0,0.235852]
[1739992324596,0.0008508,95633.0,95631.0,0.079]
[1739992324816,0.0008508,95633.0,95632.0,0.156851]
[1739992325092,0.0008508,95633.0,95632.0,0.30505465]
[1739992325288,0.0008508,95633.0,95632.0,0.3205955]
[1739992325540,0.0008508,95633.0,95632.0,0.3195955]
[1739992325680,0.0008508,95633.0,95632.0,0.4027955]
[1739992326515,0.0018508,95633.0,95632.0,0.4097955]
[1739992327319,0.0018508,95633.0,95632.0,0.39411866]
[1739992328320,0.0028508,95633.0,95632.0,0.40011866]
[1739992329539,0.0028508,95633.0,95632.0,0.55011866]
[1739992330948,0.0018508,95633.0,95632.0,0.54411866]
[1739992331149,0.0028508,95633.0,95632.0,0.55111866]
[1739992331407,0.0028508,95633.0,95632.0,0.54411866]
[1739992331849,0.0038508,95633.0,95632.0,0.55111866]
[1739992332048,0.0028508,95633.0,95632.0,0.54411866]
[1739992332209,0.0038508,95633.0,95632.0,0.55111866]
[1739992332634,0.0018508,95633.0,95632.0,0.53711866]
[1739992332975,0.0008526,95674.0,95673.0,0.156784]
[1739992333179,0.0008526,95674.0,95671.0,0.209048]
[1739992333180,0.00098372,95674.0,95667.0,0.236793]
[1739992333334,0.00098372,95674.0,95668.0,0.10250365]
[1739992334489,0.00098372,95674.0,95672.0,0.156784]
[1739992334708,0.00098372,95674.0,95668.0,0.10250365]
[1739992334901,0.00098372,95674.0,95661.0,0.0469]
[1739992335107,0.00098372,95674.0,95662.0,0.10250365]
[1739992335315,0.00098372,95674.0,95673.0,0.003]
[1739992335720,0.00098372,95674.0,95672.0,0.003]
[1739992335859,0.00098372,95674.0,95662.0,0.10250365]
[1739992338677,0.156794,95667.0,95648.0,0.156824]
[1739992338904,0.00094372,95674.0,95649.0,0.10250365]
[1739992339085,0.209045,95673.0,95664.0,0.002]
[1739992339261,0.156797,95665.0,95664.0,0.004]
[1739992339636,0.156797,95665.0,95664.0,0.002]
[1739992339823,0.1568,95663.0,95662.0,0.001]
[1739992339977,0.156812,95656.0,95637.0,0.0757]
[1739992340185,0.01638226,95671.0,95638.0,0.10250365]
[1739992340404,0.15,95669.0,95638.0,0.10250365]
[1739992340660,0.156813,95656.0,95638.0,0.10250365]
[1739992340993,0.156814,95655.0,95638.0,0.10250365]
[1739992341193,0.20908,95657.0,95638.0,0.10250365]
[1739992341398,0.156821,95650.0,95638.0,0.10250365]
[1739992341598,0.02087359,95668.0,95664.0,0.001]
[1739992341806,0.306797,95665.0,95664.0,0.002]
[1739992342030,0.48590065,95665.0,95664.0,0.001]
[1739992342285,0.156833,95643.0,95618.0,0.0759]
[1739992342412,0.156838,95640.0,95619.0,0.25937565]
[1739992342751,0.001,95650.0,95620.0,0.156869]
[1739992342752,0.209112,95643.0,95620.0,0.156869]
[1739992342961,0.156836,95641.0,95621.0,0.25937065]
[1739992343121,0.209112,95643.0,95621.0,0.10250365]
[1739992343122,0.156838,95640.0,95621.0,0.10250365]
[1739992343505,0.156837,95641.0,95622.0,0.156867]
[1739992343707,0.156837,95641.0,95623.0,0.10250365]
[1739992343910,0.156839,95640.0,95623.0,0.10250365]
[1739992344357,0.15,95658.0,95623.0,0.10250365]
[1739992344509,0.156841,95638.0,95623.0,0.10250365]
[1739992344947,0.156839,95639.0,95623.0,0.10250365]
[1739992345561,0.209116,95641.0,95623.0,0.10250365]
[1739992349023,0.003,95655.0,95640.0,0.10250365]
[1739992349238,0.003,95655.0,95641.0,0.156836]
[1739992349439,0.002,95654.0,95642.0,0.10250365]
[1739992349855,0.003,95654.0,95642.0,0.10250365]
[1739992350051,0.003,95654.0,95642.0,0.25933765]
[1739992350224,0.005,95654.0,95642.0,0.10250365]
[1739992350995,0.002,95654.0,95642.0,0.10250365]
[1739992351402,0.156819,95652.0,95642.0,0.10250365]
[1739992351544,0.156821,95651.0,95642.0,0.10250365]
[1739992352402,0.156818,95652.0,95642.0,0.10250365]
[1739992352701,0.156817,95653.0,95642.0,0.10350365]
[1739992353491,0.15,95665.0,95642.0,0.10350365]
[1739992353698,0.156818,95652.0,95642.0,0.10350365]
[1739992354123,0.209073,95660.0,95642.0,0.10350365]
[1739992354325,0.156814,95655.0,95642.0,0.10350365]
[1739992354566,0.156815,95654.0,95642.0,0.10350365]
[1739992355000,0.156816,95653.0,95642.0,0.10350365]
[1739992355204,0.003,95660.0,95653.0,0.156815]
[1739992355413,0.003,95660.0,95643.0,0.0781]
[1739992355611,0.15,95662.0,95643.0,0.0781]
[1739992355612,0.15,95662.0,95644.0,0.10250365]
[1739992356015,0.001,95654.0,95644.0,0.10250365]
[1739992356528,0.001,95654.0,95644.0,0.10293949]
[1739992357174,0.156813,95655.0,95644.0,0.10293949]
[1739992357366,0.156815,95654.0,95644.0,0.10293949]
[1739992357544,0.156813,95656.0,95644.0,0.10293949]
[1739992357915,0.156808,95658.0,95644.0,0.10293949]
[1739992358135,0.156808,95659.0,95644.0,0.10293949]
[1739992358333,0.001,95654.0,95648.0,0.156824]
[1739992358546,0.001,95654.0,95646.0,0.156826]
[1739992358742,0.156806,95660.0,95646.0,0.10250365]
[1739992359118,0.00343078,95653.0,95646.0,0.10250365]
[1739992359320,0.002,95658.0,95646.0,0.10250365]
[1739992359436,0.003,95658.0,95648.0,0.156825]
[1739992359638,0.00342029,95652.0,95646.0,0.10250365]
[1739992359830,0.156812,95656.0,95646.0,0.10250365]
[1739992360037,0.002,95658.0,95646.0,0.10250365]
[1739992360237,0.00344348,95655.0,95647.0,0.156825]
[1739992360437,0.001,95654.0,95646.0,0.10250365]
[1739992360636,0.00443941,95654.0,95646.0,0.10250365]
[1739992360902,0.001,95654.0,95646.0,0.10250365]
[1739992361201,0.00343728,95653.0,95646.0,0.10250365]
[1739992361381,0.002,95658.0,95646.0,0.10250365]
[1739992361541,0.00343515,95652.0,95646.0,0.10250365]
[1739992361752,0.156808,95659.0,95646.0,0.10250365]
[1739992362041,0.001,95654.0,95647.0,0.10250365]
[1739992362482,0.001,95654.0,95653.0,0.156816]
[1739992362773,0.001,95654.0,95653.0,0.25931965]
[1739992363340,0.048,95689.0,95655.0,0.209084]
[1739992363570,0.0799,95699.0,95673.0,0.156784]
[1739992363759,0.156766,95684.0,95656.0,0.22650365]
[1739992363963,0.156764,95685.0,95670.0,0.156788]
[1739992364123,0.209002,95693.0,95656.0,0.22650365]
[1739992364325,0.0799,95699.0,95671.0,0.0813]
[1739992364537,0.156756,95690.0,95673.0,0.156784]
[1739992364699,0.156756,95690.0,95673.0,0.25928765]
[1739992364893,0.00094372,95674.0,95673.0,0.25928765]
[1739992365546,0.00194372,95674.0,95673.0,0.25928765]
[1739992365914,0.00094372,95674.0,95673.0,0.25928765]
[1739992366119,0.00094372,95674.0,95673.0,0.26328765]
[1739992366655,0.00094372,95674.0,95673.0,0.26628765]
[1739992370967,0.00094372,95674.0,95673.0,0.10950365]
[1739992371174,0.15772572,95674.0,95673.0,0.007]
[1739992371394,0.31096278,95674.0,95673.0,0.007]
[1739992371567,0.3273437,95674.0,95673.0,0.007]
[1739992372018,0.1705617,95674.0,95673.0,0.007]
[1739992372245,0.0205617,95674.0,95673.0,0.007]
[1739992372394,0.0205617,95674.0,95673.0,0.004]
[1739992372603,0.0205617,95674.0,95662.0,0.2383]
[1739992372831,0.0205617,95674.0,95673.0,0.001]
[1739992373876,0.00418078,95674.0,95673.0,0.001]
[1739992375788,0.00418078,95674.0,95673.0,0.003]
[1739992375912,0.00094372,95674.0,95673.0,0.003]
[1739992376141,0.00414301,95674.0,95673.0,0.003]
[1739992377361,0.00414301,95674.0,95673.0,0.10550365]
[1739992377564,0.00094372,95674.0,95673.0,0.10550365]
[1739992377896,0.00094372,95674.0,95673.0,0.26228765]
[1739992378503,0.00094372,95674.0,95673.0,0.10550365]
[1739992381337,0.00094372,95674.0,95673.0,0.33908765]
[1739992381734,0.00094372,95674.0,95673.0,0.39886493]
[1739992382472,0.00094372,95674.0,95673.0,0.64496935]
[1739992382660,0.01089769,95724.0,95701.0,0.0768]
[1739992382862,0.01102881,95724.0,95706.0,0.208971]
[1739992383160,0.01102881,95724.0,95701.0,0.0768]
[1739992383161,0.01102881,95724.0,95708.0,0.208968]
[1739992383382,0.01102881,95724.0,95703.0,0.216779]
[1739992383383,0.01102881,95724.0,95709.0,0.10250365]
[1739992383944,0.01202881,95724.0,95710.0,0.156723]
[1739992384111,0.01202881,95724.0,95711.0,0.10250365]
[1739992384112,0.00329717,95723.0,95711.0,0.10250365]
[1739992384314,0.00113112,95724.0,95720.0,0.208942]
[1739992384517,0.00113112,95724.0,95721.0,0.10250365]
[1739992384980,0.00113112,95724.0,95722.0,0.156703]
[1739992385157,0.00113112,95724.0,95723.0,0.10250365]
[1739992385355,0.00198152,95724.0,95710.0,0.048]
[1739992385595,0.00198152,95724.0,95712.0,0.156719]
[1739992385771,0.00333129,95723.0,95713.0,0.10250365]
[1739992385940,0.00333129,95723.0,95714.0,0.156715]
[1739992386138,0.00333129,95723.0,95709.0,0.208964]
[1739992386139,0.156706,95721.0,95715.0,0.10250365]
[1739992386340,0.00332491,95720.0,95715.0,0.10250365]
[1739992386607,0.00098152,95724.0,95715.0,0.10250365]
[1739992386758,0.00333129,95723.0,95715.0,0.10250365]
[1739992387758,0.00198152,95724.0,95716.0,0.156712]
[1739992387923,0.00198152,95724.0,95717.0,0.10250365]
[1739992388478,0.00198152,95724.0,95722.0,0.156703]
[1739992388647,0.00198152,95724.0,95717.0,0.10250365]
[1739992388856,0.00198152,95724.0,95723.0,0.156702]
[1739992389008,0.00098152,95724.0,95723.0,0.25920565]
[1739992390076,0.00098152,95724.0,95723.0,0.27320565]
[1739992390662,0.00098152,95724.0,95723.0,0.26620565]
[1739992391413,0.00098152,95724.0,95723.0,0.25920565]
[1739992392219,0.00098152,95724.0,95723.0,0.26620565]
[1739992392832,0.00098152,95724.0,95723.0,0.27320565]
[1739992398153,0.00094152,95724.0,95723.0,0.27320565]
[1739992398430,0.00094152,95724.0,95723.0,0.5635465]
[1739992399517,5.2e-07,95724.0,95723.0,0.5565465]
[1739992399813,5.2e-07,95724.0,95723.0,0.5495465]
[1739992400020,5.2e-07,95724.0,95723.0,0.5635465]
[1739992400208,5.2e-07,95724.0,95723.0,0.5565465]
[1739992400415,5.2e-07,95724.0,95723.0,0.55672565]
[1739992400620,5.2e-07,95724.0,95723.0,0.57616243]
[1739992400819,5.2e-07,95724.0,95723.0,0.56916243]
[1739992401017,5.2e-07,95724.0,95723.0,0.57616243]
[1739992401449,5.2e-07,95724.0,95723.0,0.56216243]
[1739992401766,5.2e-07,95724.0,95723.0,0.56916243]
[1739992402059,5.2e-07,95724.0,95723.0,0.12894043]
[1739992402196,5.2e-07,95724.0,95723.0,0.25920565]
[1739992402603,5.2e-07,95724.0,95723.0,0.11650365]
[1739992403034,5.2e-07,95724.0,95723.0,0.25920565]
[1739992403254,5.2e-07,95724.0,95723.0,0.11150365]
[1739992403559,5.2e-07,95724.0,95723.0,0.10650365]
[1739992403737,5.2e-07,95724.0,95723.0,0.11150365]
[1739992404281,5.2e-07,95724.0,95723.0,0.10650365]
[1739992404481,5.2e-07,95724.0,95723.0,0.11150365]
[1739992405095,5.2e-07,95724.0,95723.0,0.10750365]
[1739992405573,5.2e-07,95724.0,95723.0,0.11250365]
[1739992405933,5.2e-07,95724.0,95723.0,0.10750365]
[1739992406539,5.2e-07,95724.0,95723.0,0.11250365]
[1739992406736,5.2e-07,95724.0,95723.0,0.10750365]
[1739992406946,0.15670052,95724.0,95723.0,0.005]
[1739992407143,0.00400929,95724.0,95723.0,0.01]
[1739992407729,0.00400929,95724.0,95723.0,0.005]
[1739992407907,0.00400929,95724.0,95723.0,0.008]
[1739992408532,0.00400929,95724.0,95723.0,0.005]
[1739992408722,0.00400929,95724.0,95723.0,0.003]
[1739992408929,0.00400929,95724.0,95723.0,0.007]
[1739992409310,0.00400929,95724.0,95723.0,0.004]
[1739992410315,0.16070929,95724.0,95723.0,0.004]
[1739992410558,0.00400929,95724.0,95723.0,0.004]
[1739992410732,0.00400929,95724.0,95723.0,0.007]
[1739992410944,0.00400929,95724.0,95723.0,0.007425]
[1739992412724,0.00400929,95724.0,95723.0,0.26663065]
[1739992412852,5.2e-07,95724.0,95723.0,0.26663065]
[1739992413250,5.2e-07,95724.0,95723.0,0.28619587]
[1739992415792,5.2e-07,95724.0,95723.0,0.28219587]
[1739992415970,5.2e-07,95724.0,95723.0,0.28619587]
[1739992416297,5.2e-07,95724.0,95723.0,0.28219587]
[1739992416495,5.2e-07,95724.0,95723.0,0.28774692]
[1739992416689,5.2e-07,95724.0,95723.0,0.28474692]
[1739992417227,5.2e-07,95724.0,95723.0,0.53198777]
[1739992417404,5.2e-07,95724.0,95723.0,0.60628842]
[1739992418415,5.2e-07,95724.0,95723.0,0.61328842]
[1739992418765,5.2e-07,95724.0,95723.0,0.62028842]
[1739992419145,5.2e-07,95724.0,95723.0,0.64028842]
[1739992419346,5.2e-07,95724.0,95723.0,0.62028842]
[1739992419568,5.2e-07,95724.0,95723.0,0.64028842]
[1739992419953,5.2e-07,95724.0,95723.0,0.63328842]
[1739992420218,5.2e-07,95724.0,95723.0,0.64028842]
[1739992420761,5.2e-07,95724.0,95723.0,0.63328842]
[1739992420985,5.2e-07,95724.0,95723.0,0.64028842]
[1739992423913,5.2e-07,95729.0,95728.0,0.306693]
[1739992424113,5.2e-07,95729.0,95728.0,0.53331131]
[1739992424692,5.2e-07,95729.0,95728.0,0.55842758]
[1739992424990,5.2e-07,95729.0,95728.0,0.56542758]
[1739992425614,5.2e-07,95729.0,95728.0,0.61242758]
[1739992425814,5.2e-07,95729.0,95728.0,0.66202758]
[1739992426171,5.2e-07,95729.0,95728.0,0.6672783]
[1739992426740,5.2e-07,95729.0,95728.0,0.6742783]
[1739992426958,5.2e-07,95729.0,95728.0,0.6602783]
[1739992427092,0.0008526,95770.0,95758.0,0.156644]
[1739992427293,0.00098285,95759.0,95758.0,0.26686765]
[1739992428308,0.00098285,95759.0,95758.0,0.41686765]
[1739992428531,0.00098285,95759.0,95758.0,0.43643287]
[1739992429423,0.00098285,95759.0,95758.0,0.44343287]
[1739992430037,0.00098285,95759.0,95758.0,0.45043287]
[1739992430638,0.00098285,95759.0,95758.0,0.4583938]
[1739992431055,0.00098285,95759.0,95758.0,0.4706212]
[1739992431468,8.5e-07,95759.0,95758.0,0.48516205]
[1739992432240,8.5e-07,95759.0,95758.0,0.47816205]
[1739992432453,8.5e-07,95759.0,95758.0,0.56716205]
[1739992432804,8.5e-07,95759.0,95758.0,0.56016205]
[1739992433324,8.5e-07,95759.0,95758.0,0.56716205]
[1739992434538,8.5e-07,95759.0,95758.0,0.65596205]
[1739992435720,2.5e-07,95771.0,95770.0,0.156625]
[1739992436043,2.5e-07,95771.0,95770.0,0.5202695]
[1739992436252,2.5e-07,95771.0,95770.0,0.5890695]
[1739992436951,0.0008514,95805.0,95804.0,0.233169]
[1739992437092,0.0008514,95805.0,95804.0,0.34343265]
[1739992437093,0.00128841,95805.0,95804.0,0.34343265]
[1739992437292,0.00128841,95805.0,95804.0,0.26683265]
[1739992438352,8.1e-07,95806.0,95805.0,0.34110885]
[1739992438586,0.00013178,95806.0,95805.0,0.4436125]
[1739992438811,0.00013178,95806.0,95805.0,0.52717607]
[1739992439718,0.00013178,95806.0,95805.0,0.53417607]
[1739992440155,0.00013178,95806.0,95805.0,0.52717607]
[1739992440329,7.8e-07,95806.0,95805.0,0.56117607]
[1739992440495,7.8e-07,95806.0,95805.0,0.63066818]
[1739992440707,7.8e-07,95806.0,95805.0,0.63842818]
[1739992441337,7.8e-07,95806.0,95805.0,0.61842818]
[1739992441542,7.8e-07,95806.0,95805.0,0.63842818]
[1739992442017,7.8e-07,95806.0,95805.0,0.61842818]
[1739992442227,7.8e-07,95806.0,95805.0,0.63842818]
[1739992442467,7.8e-07,95806.0,95805.0,0.61842818]
[1739992442923,7.8e-07,95806.0,95805.0,0.63842818]
[1739992444180,7.8e-07,95806.0,95805.0,0.71712818]
[1739992445227,7.8e-07,95806.0,95805.0,0.72130918]
[1739992445425,0.000852,95825.0,95818.0,0.156546]
[1739992445631,0.000852,95825.0,95818.0,0.40904965]
[1739992446715,0.000852,95825.0,95818.0,0.41604965]
[1739992446932,0.000852,95825.0,95818.0,0.42304965]
[1739992447812,0.000852,95825.0,95820.0,0.15]
[1739992448008,0.00085,95855.0,95854.0,0.156487]
[1739992448228,0.00098097,95855.0,95854.0,0.25899065]
[1739992449506,0.00098097,95855.0,95854.0,0.27078732]
[1739992449707,0.00098097,95855.0,95854.0,0.42078732]
[1739992450482,0.00098097,95855.0,95854.0,0.42778732]
[1739992451690,0.00098097,95855.0,95854.0,0.42078732]
[1739992451990,0.00098097,95855.0,95854.0,0.44232817]
[1739992452398,0.00098097,95855.0,95854.0,0.44932817]
[1739992452598,0.00098097,95855.0,95854.0,0.44232817]
[1739992452823,0.00098097,95855.0,95854.0,0.43532817]
[1739992453016,0.00098097,95855.0,95854.0,0.44932817]
[1739992453215,9.7e-07,95855.0,95854.0,0.46932817]
[1739992453433,9.7e-07,95855.0,95854.0,0.48932817]
[1739992454390,9.7e-07,95855.0,95854.0,0.56902817]
[1739992454633,9.7e-07,95855.0,95854.0,0.61402817]
[1739992454851,9.7e-07,95855.0,95854.0,0.60702817]
[1739992455087,1e-06,95891.0,95890.0,0.306429]
[1739992455277,1e-06,95891.0,95890.0,0.42468816]
[1739992455483,1e-06,95891.0,95890.0,0.43922901]
[1739992455484,9e-07,95891.0,95890.0,0.43922901]
[1739992455723,0.0482,95940.0,95890.0,0.43922901]
[1739992455724,9e-07,95902.0,95901.0,0.306411]
[1739992455972,0.00043713,95902.0,95901.0,0.40891465]
[1739992456157,0.00043713,95902.0,95901.0,0.4234555]
[1739992456452,0.00034499,95902.0,95901.0,0.4234555]
[1739992457065,0.00034499,95902.0,95901.0,0.41671465]
[1739992457419,0.00034499,95902.0,95901.0,0.4312555]
[1739992457626,9.9e-07,95902.0,95901.0,0.4382555]
[1739992457808,9.9e-07,95902.0,95901.0,0.4712555]
[1739992458010,9.9e-07,95902.0,95901.0,0.5464555]
[1739992458238,9.9e-07,95902.0,95901.0,0.7809355]
[1739992458431,9.9e-07,95902.0,95901.0,0.8228355]
[1739992458651,0.15,95980.0,95913.0,0.02]
[1739992458825,0.00013086,95960.0,95933.0,0.10250365]
[1739992459033,0.00013086,95960.0,95934.0,0.00784]
[1739992459238,0.00013086,95960.0,95941.0,0.156345]
[1739992459453,0.156318,95958.0,95942.0,0.10250365]
[1739992459618,0.208422,95959.0,95942.0,0.10250365]
[1739992460021,0.15644686,95960.0,95942.0,0.10250365]
[1739992460222,0.00013086,95960.0,95942.0,0.10250365]
[1739992460657,0.00013086,95960.0,95959.0,0.156316]
[1739992460866,0.00013086,95960.0,95959.0,0.10250365]
[1739992461067,0.00013086,95960.0,95959.0,0.25881965]
[1739992461268,0.00013086,95960.0,95959.0,0.10250365]
[1739992461469,0.00013086,95960.0,95934.0,0.002]
[1739992461668,0.00013086,95960.0,95945.0,0.00784]
[1739992461992,0.00013086,95960.0,95946.0,0.10250365]
[1739992462893,0.00013086,95960.0,95959.0,0.004]
[1739992463278,0.00055596,95960.0,95959.0,0.004]
[1739992463593,0.15687096,95960.0,95959.0,0.004]
[1739992463796,0.21417096,95960.0,95959.0,0.004]
[1739992463997,0.15,95959.0,95919.0,0.00788]
[1739992464199,0.01454085,95956.0,95920.0,0.10250365]
[1739992464408,0.306336,95947.0,95946.0,0.003]
[1739992464629,0.15,95947.0,95946.0,0.003]
[1739992464798,0.15,95946.0,95927.0,0.156368]
[1739992465164,0.15,95951.0,95928.0,0.10250365]
[1739992465363,0.156342,95943.0,95928.0,0.10250365]
[1739992465516,0.208441,95950.0,95928.0,0.10250365]
[1739992465838,0.15,95939.0,95928.0,0.10250365]